fUSD/lending_fUSD_20240515
["ID","MTS","AMOUNT","RATE_DAILY","PERIOD"]
[327074085,1715781038661,-500.0,0.00011991,2]
[327074086,1715781038671,-500.0,0.00011991,2]
[327074087,1715781038680,-500.0,0.00011991,2]
[327074088,1715781038691,-1148.88,0.00011991,2]
[327074089,1715781038700,-1982.1767124,0.00011992,2]
[327074090,1715781038710,-2081.5796648,0.00011992,2]
[327074091,1715781038720,-2180.9826172,0.00011992,2]
[327074092,1715781038729,-1521.6523878,0.00011992,2]
[327074093,1715781038739,-1597.9607911,0.00011992,2]
[327074094,1715781038749,-1674.2691943,0.00011992,2]
[327074095,1715781038760,-49563.9606631,0.00011992,2]
[327074096,1715781038769,-51709.0017278,0.00011992,2]
[327074097,1715781038778,-53854.0427925,0.00011992,2]
[327074098,1715781038788,-347.9322571,0.00011992,2]
[327074099,1715781038797,-362.9901534,0.00011992,2]
[327074100,1715781038808,-378.0480496,0.00011992,2]
[327074101,1715781038817,-4829.7995276,0.00011992,2]
[327074102,1715781038826,-5005.4137847,0.00011992,2]
[327074103,1715781038836,-5181.0280418,0.00011992,2]
[327074104,1715781038845,-300.0,0.00011995,2]
[327074105,1715781038857,-500.0,0.00011999,2]
[327074106,1715781038867,-500.0,0.00011999,2]
[327074107,1715781038876,-500.0,0.00011999,2]
[327074108,1715781038885,-288.78,0.00011999,2]
[327074109,1715781038895,-500.0,0.00011999,2]
[327074110,1715781038904,-500.0,0.00011999,2]
[327074111,1715781038914,-500.0,0.00011999,2]
[327074112,1715781038923,-500.0,0.00011999,2]
[327074113,1715781038933,-500.0,0.00011999,2]
[327074114,1715781038942,-500.0,0.00011999,2]
[327074115,1715781038952,-500.0,0.00011999,2]
[327074116,1715781038962,-500.0,0.00011999,2]
[327074117,1715781038971,-500.0,0.00011999,2]
[327074118,1715781038980,-500.0,0.00011999,2]
[327074119,1715781038990,-500.0,0.00011999,2]
[327074120,1715781038999,-500.0,0.00011999,2]
[327074121,1715781039009,-500.0,0.00011999,2]
[327074122,1715781039019,-182.0,0.00011999,2]
[327074123,1715781039029,-291.04,0.00011999,2]
[327074124,1715781039039,-577.4638581,0.00011999,2]
[327074125,1715781039050,-1148.88,0.00011999,2]
[327074126,1715781039061,-1148.88,0.00011999,2]
[327074127,1715781039071,-1148.88,0.00011999,2]
[327074128,1715781039082,-1148.88,0.00011999,2]
[327074129,1715781039092,-1148.88,0.00011999,2]
[327074130,1715781039106,-1148.88,0.00011999,2]
[327074131,1715781039116,-1148.88,0.00011999,2]
[327074132,1715781039127,-1148.88,0.00011999,2]
[327074133,1715781039137,-1148.88,0.00011999,2]
[327074134,1715781039294,-1148.88,0.00011999,2]
[327074135,1715781039306,-1148.88,0.00011999,2]
[327074136,1715781039317,-1148.88,0.00011999,2]
[327074137,1715781039328,-1148.88,0.00011999,2]
[327074138,1715781039339,-1148.88,0.00011999,2]
[327074139,1715781039351,-1148.88,0.00011999,2]
[327074140,1715781039367,-1148.88,0.00011999,2]
[327074141,1715781039379,-1148.93352139,0.00011999,2]
[327074142,1715781039391,-328990.30494816,0.00012,2]
[327074143,1715781039401,-24949.0,0.00012,2]
[327074144,1715781039412,-19619.11365683,0.00012,2]
[327074145,1715781039422,-639.49071278,0.00012,2]
[327074146,1715781039432,-1302164.99519508,0.00012,2]
[327074147,1715781039442,-211.44425983,0.00012,2]
[327074148,1715781039453,-132351.85141962,0.00012,2]
[327074176,1715781039924,-286.33470398,0.00011926,2]
[327074206,1715781043031,-600.0,0.000112,4]
[327074207,1715781043041,-862.45304068,0.000113,4]
[327074208,1715781043053,-337.54695932,0.000113,4]
[327074209,1715781043063,-398.40304068,0.0001168,2]
[327074210,1715781043075,-7101.59695932,0.0001168,2]
[327074211,1715781043085,-588.77621003,0.00011926,2]
[327074212,1715781043095,-150.0,0.00011983,2]
[327074213,1715781043105,-6032.62683065,0.00012,2]
[327074214,1715781043118,-608.15,0.00012,2]
[327074216,1715781043362,-2900.0,0.00012,2]
[327074217,1715781043375,-16126.15489484,0.00012,2]
[327074218,1715781043388,-3569.76000002,0.00012,2]
[327074219,1715781043400,-234896.7932814,0.00012,2]
[327074220,1715781043412,-1545.88121157,0.00012,2]
[327074221,1715781043425,-731.9391938,0.00012,2]
[327074222,1715781043437,-543.33974753,0.00012,2]
[327074224,1715781043810,-22587.10889574,0.00012,2]
[327074226,1715781043823,-656.35,0.00012,2]
[327074228,1715781043836,-35021.81815246,0.00012,2]
[327074230,1715781043847,-1777.0097341,0.00012,2]
[327074231,1715781043862,-20000.0,0.00012,2]
[327074232,1715781043872,-53649.4864456,0.00012,2]
[327074233,1715781043884,-591.71950457,0.00012,2]
[327074234,1715781043895,-1424.7010828,0.00012,2]
[327074235,1715781043907,-302.75817472,0.00012,2]
[327074236,1715781043918,-5386.5988,0.00012,2]
[327074237,1715781043930,-888.56521598,0.00012,2]
[327074248,1715781046745,-313.36305815,0.000114,4]
[327074250,1715781046756,-1486.63694185,0.000114,4]
[327074252,1715781046767,-2400.0,0.000115,4]
[327074254,1715781046776,-43292.27802188,0.00011999,2]
[327074256,1715781046785,-296.49601691,0.00011999,2]
[327074258,1715781046794,-109340.08069842,0.00012,2]
[327074266,1715781046973,-2414.0,0.00012,2]
[327074267,1715781046984,-1291.54,0.00012,2]
[327074268,1715781046997,-232187.37485523,0.00012,2]
[327074269,1715781047009,-12722.56992001,0.00012,2]
[327074281,1715781084847,151.0,0.00020469,120]
[327074309,1715781362142,151.0,0.00020469,120]
[327074313,1715781495306,192.79,8.428e-05,2]
[327074316,1715781523191,547358.28128245,8.428e-05,2]
[327074318,1715781527964,400.11887596,8.428e-05,2]
[327074319,1715781528177,7515.37642379,8.428e-05,2]
[327074320,1715781529266,20210.93649759,8.428e-05,2]
[327074321,1715781529853,560.64231603,8.428e-05,2]
[327074322,1715781537118,1377.29078847,8.428e-05,2]
[327074323,1715781537188,547358.28128245,8.428e-05,2]
[327074324,1715781542862,2546.70033184,6.321e-05,2]
[327074325,1715781545837,560.64231603,8.428e-05,2]
[327074326,1715781546180,7515.37642379,8.428e-05,2]
[327074327,1715781547976,400.16043463,8.428e-05,2]
[327074328,1715781551614,20210.93649759,8.428e-05,2]
[327074329,1715781553228,123962.58055657,8.428e-05,2]
[327074330,1715781558516,1377.29078847,8.428e-05,2]
[327074331,1715781558802,2546.70033184,6.321e-05,2]
[327074332,1715781564197,7515.37642379,8.428e-05,2]
[327074333,1715781567843,560.64231603,6.321e-05,2]
[327074334,1715781572519,471.1704385,6.321e-05,2]
[327074335,1715781574801,2546.70033184,4.741e-05,2]
[327074336,1715781575279,16191.06844251,6.321e-05,2]
[327074337,1715781582183,3808.6882732,6.321e-05,2]
[327074338,1715781591975,560.45555907,6.321e-05,2]
[327074339,1715781594802,913.33901108,4.741e-05,2]
[327074342,1715781624456,151.0,0.00020469,120]
[327074368,1715781861031,151.0,0.00020469,120]
[327074387,1715782154225,171.58,8.444e-05,2]
[327074388,1715782166541,151.0,0.00020469,120]
[327074394,1715782207640,289.09537268,8.444e-05,2]
[327074395,1715782227595,432.74692247,8.444e-05,2]
[327074406,1715782232301,-935.11650011,9.774e-05,2]
[327074407,1715782232312,-362.14370465,9.774e-05,2]
[327074408,1715782232322,-179.67796345,9.775e-05,2]
[327074409,1715782232332,-1966.620949,9.775e-05,2]
[327074410,1715782232341,-16269.48063733,0.0001026,2]
[327074411,1715782232350,-43292.27802188,0.0001027,2]
[327074412,1715782232359,-7247.78892911,0.00010271,2]
[327074413,1715782232368,-13909.45,0.00010356,2]
[327074414,1715782232378,-1072.94,0.00010367,2]
[327074415,1715782232388,-250.0,0.00010373,2]
[327074416,1715782232398,-1165.9,0.00010376,2]
[327074417,1715782232407,-1539.33,0.00010379,2]
[327074418,1715782232417,-150.99,0.00010379,2]
[327074419,1715782232428,-200.0,0.00010387,2]
[327074420,1715782232438,-1502.31,0.00010388,2]
[327074421,1715782232448,-1280.12,0.00010388,2]
[327074422,1715782232457,-1000.0,0.00010404,2]
[327074423,1715782232466,-166.57,0.00010411,2]
[327074424,1715782232475,-250.0,0.00010435,2]
[327074425,1715782232485,-317.94,0.00010454,2]
[327074426,1715782232494,-155.19,0.00010466,2]
[327074427,1715782232504,-166.39,0.00010526,2]
[327074428,1715782232513,-6830.48,0.00010526,2]
[327074429,1715782232522,-155.19,0.00010647,2]
[327074430,1715782232534,-171.58,0.00010708,2]
[327074431,1715782232547,-155.19,0.00010829,2]
[327074432,1715782232557,-499.99,0.00010895,2]
[327074433,1715782232566,-10044.01,0.00010959,2]
[327074434,1715782232575,-4000.0,0.00010959,3]
[327074435,1715782232586,-1000.0,0.00010959,2]
[327074436,1715782232596,-241.65,0.00010959,2]
[327074437,1715782232606,-201.37,0.00010959,2]
[327074438,1715782232616,-167.81,0.00010959,2]
[327074439,1715782232626,-839.07,0.00010959,2]
[327074440,1715782232636,-200.0,0.00011,2]
[327074441,1715782232645,-155.19,0.00011011,2]
[327074442,1715782232654,-154.19,0.00011014,2]
[327074443,1715782232663,-1088.00500406,0.00011075,2]
[327074444,1715782232672,-36172.2288,0.0001108,2]
[327074445,1715782232681,-1538.34137164,0.00011109,2]
[327074447,1715782232691,-1538.34137165,0.00011109,2]
[327074449,1715782232700,-782.2062,0.00011249,2]
[327074451,1715782232710,-900.0,0.000113,4]
[327074453,1715782232720,-1900.0,0.000114,4]
[327074455,1715782232729,-2900.0,0.000115,4]
[327074457,1715782232739,-1464.0,0.00011524,2]
[327074459,1715782232748,-317.17,0.00011534,2]
[327074461,1715782232758,-600.0,0.00011536,2]
[327074462,1715782232768,-1400.0,0.00011568,2]
[327074463,1715782232778,-3900.0,0.000116,4]
[327074464,1715782232787,-30335.3643,0.00011668,2]
[327074465,1715782232798,-528.07,0.00011671,2]
[327074466,1715782232808,-263.27,0.00011671,2]
[327074467,1715782232818,-420.44,0.00011671,2]
[327074468,1715782232829,-152.46,0.00011671,2]
[327074469,1715782232840,-1563.85586632,0.00011676,2]
[327074470,1715782232850,-1000.0,0.0001168,2]
[327074471,1715782232860,-4800.0,0.000117,4]
[327074472,1715782232870,-1000.0,0.00011705,2]
[327074473,1715782232879,-150.0,0.00011739,2]
[327074474,1715782232889,-150.0,0.00011756,2]
[327074475,1715782232899,-150.0,0.00011759,2]
[327074476,1715782232910,-317.94,0.00011761,2]
[327074477,1715782232920,-150.0,0.00011774,2]
[327074478,1715782232930,-500.0,0.0001178,2]
[327074479,1715782232941,-500.0,0.0001178,2]
[327074480,1715782232951,-500.0,0.0001178,2]
[327074481,1715782232962,-500.0,0.0001178,2]
[327074482,1715782232972,-500.69747996,0.0001178,2]
[327074483,1715782232981,-503.58383461,0.0001178,2]
[327074484,1715782232992,-500.0,0.0001178,2]
[327074485,1715782233002,-500.0,0.0001178,2]
[327074486,1715782233011,-500.0,0.0001178,2]
[327074487,1715782233021,-500.0,0.0001178,2]
[327074488,1715782233031,-2320.95,0.0001178,2]
[327074489,1715782233040,-89.86866075,0.0001178,2]
[327074490,1715782233056,-2231.08133925,0.0001178,2]
[327074491,1715782233068,-500.0,0.0001178,2]
[327074492,1715782233079,-352.56866075,0.0001178,2]
[327074493,1715782233090,-147.43133925,0.0001178,2]
[327074494,1715782233100,-170.19366075,0.0001178,2]
[327074495,1715782233116,-359.00187537,0.0001178,2]
[327074496,1715782233125,-500.0,0.0001178,2]
[327074497,1715782233135,-259.90980394,0.0001178,2]
[327074498,1715782233147,-500.0,0.0001178,2]
[327074499,1715782233161,-500.0,0.0001178,2]
[327074500,1715782233172,-500.0,0.0001178,2]
[327074501,1715782233182,-500.0,0.0001178,2]
[327074502,1715782233192,-500.0,0.0001178,2]
[327074503,1715782233202,-500.0,0.0001178,2]
[327074504,1715782233213,-1792.45,0.0001178,2]
[327074505,1715782233222,-1792.45,0.0001178,2]
[327074506,1715782233232,-578.1,0.0001178,2]
[327074507,1715782233242,-500.0,0.0001178,2]
[327074508,1715782233251,-500.0,0.0001178,2]
[327074509,1715782233261,-500.0,0.0001178,2]
[327074510,1715782233270,-800.0,0.00011781,2]
[327074511,1715782233280,-150.0,0.00011793,2]
[327074512,1715782233290,-155.38,0.00011797,2]
[327074513,1715782233299,-15434.1127,0.00011798,2]
[327074514,1715782233310,-500.0,0.00011799,2]
[327074515,1715782233320,-1061.71255446,0.000118,2]
[327074516,1715782233330,-715.6243807,0.000118,2]
[327074517,1715782233339,-900.0,0.000118,4]
[327074518,1715782233349,-150.0,0.00011806,2]
[327074519,1715782233358,-750.0,0.00011807,2]
[327074520,1715782233368,-150.0,0.00011813,2]
[327074521,1715782233378,-150.0,0.00011831,2]
[327074522,1715782233388,-200.0,0.0001184,2]
[327074523,1715782233398,-1000.0,0.0001184,2]
[327074524,1715782233407,-500.0,0.0001184,2]
[327074525,1715782233417,-500.0,0.00011842,2]
[327074526,1715782233426,-500.0,0.00011842,2]
[327074527,1715782233436,-500.0,0.00011842,2]
[327074528,1715782233445,-645.0,0.00011842,2]
[327074529,1715782233455,-500.0,0.00011842,2]
[327074530,1715782233464,-500.0,0.00011842,2]
[327074531,1715782233474,-150.0,0.00011842,2]
[327074532,1715782233483,-500.0,0.00011843,2]
[327074533,1715782233492,-500.0,0.00011843,2]
[327074534,1715782233502,-436.8082545,0.00011843,2]
[327074535,1715782233512,-150.0,0.00011844,2]
[327074536,1715782233522,-150.0,0.00011851,2]
[327074537,1715782233537,-150.0,0.00011858,2]
[327074538,1715782233546,-150.0,0.00011871,2]
[327074539,1715782233556,-295.85877414,0.0001188,2]
[327074540,1715782233566,-3000.0,0.0001188,2]
[327074541,1715782233576,-150.0,0.00011882,2]
[327074542,1715782233587,-2320.95,0.00011897,2]
[327074543,1715782233596,-2320.95,0.00011897,2]
[327074544,1715782233605,-500.0,0.00011897,2]
[327074545,1715782233617,-1792.45,0.00011897,2]
[327074546,1715782233626,-1792.45,0.00011897,2]
[327074547,1715782233636,-500.0,0.00011897,2]
[327074548,1715782233645,-170.27458,0.00011898,2]
[327074549,1715782233655,-170.27458,0.00011898,2]
[327074550,1715782233664,-13435.41698579,0.00011898,2]
[327074551,1715782233698,-1655.49343482,0.00011898,2]
[327074552,1715782233712,-14714.91668706,0.00011898,2]
[327074553,1715782233721,-29771.04740527,0.00011898,2]
[327074556,1715782238878,-34.77970238,0.00011898,2]
[327074557,1715782238891,-2197.07000443,0.00011898,2]
[327074558,1715782238904,-12647.96066465,0.00011898,2]
[327074559,1715782238916,-3637.20517682,0.00011898,2]
[327074560,1715782238928,-1092.08755053,0.00011898,2]
[327074561,1715782239237,-10231.50371122,0.00011898,2]
[327074562,1715782239246,-29805.82710765,0.00011898,2]
[327074563,1715782239256,-558.5556,0.000119,2]
[327074564,1715782239265,-176.41750705,0.000119,2]
[327074565,1715782239274,-900.0,0.000119,4]
[327074566,1715782239283,-4444.4462796,0.000119,2]
[327074567,1715782239292,-150.0,0.00011917,2]
[327074568,1715782239302,-170.27458,0.00011918,2]
[327074569,1715782239311,-150.0,0.00011924,2]
[327074570,1715782239320,-500.0,0.00011925,2]
[327074572,1715782239507,-2320.95,0.00011926,2]
[327074573,1715782239572,-2320.95,0.00011926,2]
[327074574,1715782239583,-1792.45,0.00011926,2]
[327074575,1715782239596,-1792.45,0.00011926,2]
[327074576,1715782239606,-500.0,0.00011926,2]
[327074577,1715782239619,-500.0,0.00011926,2]
[327074578,1715782239629,-150.0,0.00011948,2]
[327074579,1715782239640,-2320.95,0.00011966,2]
[327074580,1715782239651,-1792.45,0.00011966,2]
[327074581,1715782239660,-184.570636,0.00011967,2]
[327074582,1715782239670,-194.262083,0.00011967,2]
[327074583,1715782239680,-151.740622,0.00011967,2]
[327074584,1715782239690,-150.0,0.00011967,2]
[327074585,1715782239700,-150.0,0.00011981,2]
[327074586,1715782239710,-150.0,0.00011988,2]
[327074587,1715782239720,-155.38,0.0001199,2]
[327074588,1715782239729,-212.95786766,0.0001199,2]
[327074589,1715782239739,-4444.44627956,0.0001199,2]
[327074590,1715782239749,-155.38,0.0001199,2]
[327074591,1715782239759,-155.38,0.0001199,2]
[327074592,1715782239768,-155.38,0.0001199,2]
[327074593,1715782239778,-394.6,0.00011991,2]
[327074594,1715782239787,-552.67898751,0.00011992,2]
[327074595,1715782239797,-500.0,0.00011992,2]
[327074596,1715782239807,-500.0,0.00011992,2]
[327074597,1715782239817,-6527.7575699,0.00011993,2]
[327074598,1715782239829,-10661.90559999,0.00011993,2]
[327074599,1715782239844,-2806.99303591,0.00011993,2]
[327074600,1715782239854,-801.2697887,0.00011993,2]
[327074601,1715782239864,-1896.2513738,0.00011993,2]
[327074602,1715782239874,-1141.5404251,0.00011993,2]
[327074603,1715782239884,-12576.4692436,0.00011993,2]
[327074604,1715782239896,-1079.4221048,0.00011993,2]
[327074605,1715782239906,-500.0,0.00011996,2]
[327074606,1715782239915,-500.0,0.00011996,2]
[327074607,1715782239924,-500.0,0.00011996,2]
[327074608,1715782239934,-208.12578491,0.00011996,2]
[327074609,1715782239944,-500.0,0.00011996,2]
[327074610,1715782239954,-514.12421509,0.00011996,2]
[327074611,1715782239963,-500.0,0.00011996,2]
[327074612,1715782239973,-500.0,0.00011996,2]
[327074613,1715782239982,-500.0,0.00011996,2]
[327074614,1715782239992,-500.0,0.00011996,2]
[327074615,1715782240001,-500.0,0.00011996,2]
[327074616,1715782240011,-500.0,0.00011996,2]
[327074617,1715782240020,-500.0,0.00011996,2]
[327074618,1715782240030,-565.42388381,0.00011997,2]
[327074619,1715782240039,-282.3483767,0.00011998,2]
[327074620,1715782240049,-3351.38867927,0.00011998,2]
[327074621,1715782240059,-378.12193428,0.00011998,2]
[327074622,1715782240068,-199.53080931,0.00011998,2]
[327074623,1715782240077,-3026.24071623,0.00011998,2]
[327074624,1715782240086,-3087.90524962,0.00011998,2]
[327074625,1715782240096,-2320.95,0.00011998,2]
[327074626,1715782240105,-1792.45,0.00011998,2]
[327074628,1715782240114,-578.94286344,0.00011999,2]
[327074629,1715782240124,-875.11091401,0.00011999,2]
[327074631,1715782240133,-6478.52246766,0.00011999,2]
[327074633,1715782240143,-500.0,0.00011999,2]
[327074635,1715782240152,-500.0,0.00011999,2]
[327074637,1715782240161,-150.37435882,0.00011999,2]
[327074639,1715782240171,-150.0,0.00011999,2]
[327074641,1715782240184,-500.0,0.00011999,2]
[327074643,1715782240193,-500.0,0.00011999,2]
[327074645,1715782240203,-500.0,0.00011999,2]
[327074647,1715782240212,-500.0,0.00011999,2]
[327074649,1715782240221,-500.0,0.00011999,2]
[327074651,1715782240231,-500.0,0.00011999,2]
[327074653,1715782240241,-500.0,0.00011999,2]
[327074655,1715782240251,-500.0,0.00011999,2]
[327074657,1715782240260,-2320.95,0.00011999,2]
[327074659,1715782240270,-2320.95,0.00011999,2]
[327074661,1715782240279,-2320.95,0.00011999,2]
[327074663,1715782240289,-2320.95,0.00011999,2]
[327074665,1715782240299,-2320.95,0.00011999,2]
[327074667,1715782240309,-2320.95,0.00011999,2]
[327074669,1715782240318,-2320.95,0.00011999,2]
[327074671,1715782240327,-2320.95,0.00011999,2]
[327074672,1715782240337,-2320.95,0.00011999,2]
[327074673,1715782240347,-2320.95,0.00011999,2]
[327074674,1715782240356,-2320.95,0.00011999,2]
[327074675,1715782240365,-2320.95,0.00011999,2]
[327074676,1715782240375,-2320.95,0.00011999,2]
[327074677,1715782240385,-2320.95,0.00011999,2]
[327074678,1715782240395,-2320.95,0.00011999,2]
[327074679,1715782240405,-2321.03626614,0.00011999,2]
[327074680,1715782240414,-292.12632138,0.00011999,2]
[327074681,1715782240424,-158.3,0.00011999,2]
[327074682,1715782240434,-1792.45,0.00011999,2]
[327074683,1715782240447,-1792.45,0.00011999,2]
[327074684,1715782240457,-1792.45,0.00011999,2]
[327074685,1715782240467,-1792.45,0.00011999,2]
[327074686,1715782240476,-1792.45,0.00011999,2]
[327074687,1715782240485,-1792.45,0.00011999,2]
[327074688,1715782240495,-1792.45,0.00011999,2]
[327074689,1715782240503,-1792.45,0.00011999,2]
[327074690,1715782240513,-1792.45,0.00011999,2]
[327074691,1715782240522,-1792.45,0.00011999,2]
[327074692,1715782240531,-1792.45,0.00011999,2]
[327074693,1715782240546,-1792.45,0.00011999,2]
[327074694,1715782240555,-1792.45,0.00011999,2]
[327074695,1715782240564,-1792.45,0.00011999,2]
[327074696,1715782240574,-1792.45,0.00011999,2]
[327074697,1715782240585,-1792.47101494,0.00011999,2]
[327074698,1715782240594,-548.65,0.00011999,2]
[327074699,1715782240603,-500.0,0.00011999,2]
[327074700,1715782240612,-500.0,0.00011999,2]
[327074701,1715782240625,-500.0,0.00011999,2]
[327074702,1715782240635,-288.78,0.00011999,2]
[327074703,1715782240645,-500.0,0.00011999,2]
[327074704,1715782240654,-500.0,0.00011999,2]
[327074705,1715782240664,-500.0,0.00011999,2]
[327074706,1715782240673,-500.0,0.00011999,2]
[327074707,1715782240682,-500.0,0.00011999,2]
[327074708,1715782240692,-500.0,0.00011999,2]
[327074709,1715782240702,-500.0,0.00011999,2]
[327074710,1715782240713,-500.0,0.00011999,2]
[327074711,1715782240722,-500.0,0.00011999,2]
[327074712,1715782240733,-500.0,0.00011999,2]
[327074713,1715782240742,-500.0,0.00011999,2]
[327074714,1715782240751,-500.0,0.00011999,2]
[327074715,1715782240764,-500.0,0.00011999,2]
[327074716,1715782240773,-182.0,0.00011999,2]
[327074717,1715782240784,-291.04,0.00011999,2]
[327074718,1715782240794,-500.0,0.00011999,2]
[327074719,1715782240804,-500.0,0.00011999,2]
[327074720,1715782240814,-500.0,0.00011999,2]
[327074721,1715782240824,-207.88,0.00011999,2]
[327074722,1715782240834,-500.0,0.00011999,2]
[327074723,1715782240846,-500.0,0.00011999,2]
[327074724,1715782240855,-500.0,0.00011999,2]
[327074725,1715782240864,-577.4638581,0.00011999,2]
[327074726,1715782240874,-500.0,0.00011999,2]
[327074727,1715782240883,-500.0,0.00011999,2]
[327074728,1715782240892,-500.0,0.00011999,2]
[327074729,1715782240901,-500.0,0.00011999,2]
[327074730,1715782240911,-500.0,0.00011999,2]
[327074731,1715782240919,-500.0,0.00011999,2]
[327074732,1715782240929,-500.0,0.00011999,2]
[327074733,1715782240938,-500.0,0.00011999,2]
[327074734,1715782240947,-500.0,0.00011999,2]
[327074735,1715782240956,-393.28,0.00011999,2]
[327074736,1715782240965,-500.0,0.00011999,2]
[327074737,1715782240974,-530.95,0.00011999,2]
[327074738,1715782240983,-329134.39444327,0.00012,2]
[327074739,1715782240992,-1865461.30491691,0.00012,2]
[327074740,1715782241169,-66826.98256355,0.00012,2]
[327074858,1715782243397,-685.44202007,0.00011249,2]
[327074892,1715782244011,-5009.20532579,0.00011249,2]
[327074893,1715782244022,-200.0,0.000113,4]
[327074894,1715782244031,-7654.52583772,0.00011898,2]
[327074895,1715782244043,-22151.30126993,0.00011898,2]
[327074897,1715782244052,-768.26544241,0.00012,2]
[327074899,1715782244063,-386.4213,0.00012,2]
[327074900,1715782244074,-6672.75772713,0.00012,2]
[327074924,1715782247805,-500.0,0.000114,4]
[327074925,1715782247814,-252.0601,0.000116,2]
[327074926,1715782247824,-29805.82710765,0.00011898,2]
[327074927,1715782247833,-85470.69497418,0.00012,2]
[327074928,1715782247846,-16005.0,0.00012,2]
[327074930,1715782247879,-800.0,0.000115,4]
[327074931,1715782247889,-5824.45898751,0.00012,2]
[327074932,1715782247900,-64252.66138184,0.00012,2]
[327074933,1715782249506,5715.61162359,8.444e-05,2]
[327074948,1715782702267,151.0,0.00020469,120]
[327074954,1715783093919,154.42,8.219e-05,2]
[327074958,1715783428675,155.0,8.219e-05,2]
[327074972,1715783432591,-250.0,9.8e-05,2]
[327074975,1715783432602,-250.0,9.818e-05,2]
[327074976,1715783432612,-3716.29,9.84e-05,2]
[327074977,1715783432622,-164.47,9.841e-05,2]
[327074978,1715783432631,-150.0,9.852e-05,2]
[327074979,1715783432642,-43292.27802188,9.853e-05,2]
[327074980,1715783432651,-23900.0,9.854e-05,2]
[327074981,1715783432662,-200.0,9.86e-05,2]
[327074982,1715783432672,-600.0,9.86e-05,2]
[327074983,1715783432682,-1194.41,9.86e-05,2]
[327074984,1715783432692,-869.03,0.00010137,2]
[327074985,1715783432701,-414.59,0.00010137,2]
[327074986,1715783432711,-869.03,0.000102,2]
[327074987,1715783432721,-415.22,0.000102,2]
[327074988,1715783432730,-164.29,0.0001026,2]
[327074989,1715783432740,-482.19,0.0001026,2]
[327074990,1715783432750,-1947.94,0.0001026,2]
[327074991,1715783432759,-15549.18,0.00010277,2]
[327074992,1715783432769,-150.99,0.00010277,2]
[327074993,1715783432778,-499.99,0.00010277,2]
[327074994,1715783432787,-164.29,0.00010336,2]
[327074995,1715783432797,-158.11,0.00010411,2]
[327074996,1715783432806,-164.29,0.00010412,2]
[327074997,1715783432815,-154.42,0.00010468,2]
[327074998,1715783432825,-164.29,0.00010489,2]
[327074999,1715783432835,-163.35,0.00010548,2]
[327075000,1715783432844,-150.0,0.00010548,2]
[327075001,1715783432855,-150.0,0.00010548,2]
[327075002,1715783432865,-523.66,0.00010548,2]
[327075003,1715783432875,-351.56,0.00010548,2]
[327075004,1715783432884,-150.0,0.00010548,2]
[327075005,1715783432894,-523.66,0.00010548,2]
[327075006,1715783432903,-150.0,0.00010548,2]
[327075007,1715783432914,-150.0,0.00010548,2]
[327075008,1715783432927,-163.35,0.00010548,2]
[327075009,1715783432937,-150.0,0.00010548,2]
[327075010,1715783432946,-351.56,0.00010548,2]
[327075011,1715783432956,-164.29,0.00010565,2]
[327075012,1715783432967,-4688.31,0.00010582,2]
[327075043,1715783433180,-150.99,0.00010582,2]
[327075044,1715783433190,-464.89,0.00010615,2]
[327075045,1715783433200,-312.94,0.00010615,2]
[327075046,1715783433210,-869.03,0.00010641,2]
[327075047,1715783433220,-415.22,0.00010641,2]